bitfinex/quotes_BTCUSD_20241002
["timestamp","ask_amount","ask_price","bid_price","bid_amount"]
[1727900448969,0.24576721,60440.0,60439.0,1e-06]
[1727900449211,0.25976721,60440.0,60439.0,1e-06]
[1727900449468,0.42095392,60440.0,60439.0,1e-06]
[1727900449748,0.37895392,60440.0,60439.0,1e-06]
[1727900450007,0.24376721,60440.0,60439.0,1e-06]
[1727900450763,0.24729249,60440.0,60439.0,1e-06]
[1727900451263,0.21929249,60440.0,60439.0,1e-06]
[1727900451494,0.23329249,60440.0,60439.0,1e-06]
[1727900451730,0.34189044,60440.0,60439.0,1e-06]
[1727900451976,0.36289044,60440.0,60439.0,1e-06]
[1727900452209,0.23329249,60440.0,60439.0,1e-06]
[1727900452447,0.22929249,60440.0,60439.0,1e-06]
[1727900452683,0.23529249,60440.0,60439.0,1e-06]
[1727900453193,0.24529249,60440.0,60439.0,1e-06]
[1727900453712,0.21934676,60440.0,60439.0,1e-06]
[1727900454430,0.21934676,60440.0,60439.0,0.095701]
[1727900456187,0.21934676,60440.0,60439.0,0.1052711]
[1727900456188,0.2020226,60440.0,60439.0,0.1052711]
[1727900457179,0.2036566,60440.0,60439.0,1e-06]
[1727900458671,0.2056566,60440.0,60439.0,1e-06]
[1727900458913,0.2336566,60440.0,60439.0,1e-06]
[1727900459150,0.2316566,60440.0,60439.0,1e-06]
[1727900459396,1.61964331,60440.0,60439.0,1e-06]
[1727900459641,1.63364331,60440.0,60439.0,1e-06]
[1727900459933,1.70810223,60440.0,60439.0,1e-06]
[1727900460167,1.65959058,60440.0,60439.0,1e-06]
[1727900460395,1.70210116,60440.0,60439.0,1e-06]
[1727900460630,2.48146716,60440.0,60439.0,1e-06]
[1727900460872,2.52820011,60440.0,60439.0,1e-06]
[1727900461103,2.50120011,60440.0,60439.0,1e-06]
[1727900461344,2.52920011,60440.0,60439.0,1e-06]
[1727900461586,2.48068953,60440.0,60439.0,1e-06]
[1727900461824,1.58950282,60440.0,60439.0,1e-06]
[1727900462056,1.52876987,60440.0,60439.0,1e-06]
[1727900462315,0.26996987,60440.0,60439.0,1e-06]
[1727900462578,0.28396987,60440.0,60439.0,1e-06]
[1727900462832,0.26996987,60440.0,60439.0,1e-06]
[1727900463076,0.1916566,60440.0,60439.0,1e-06]
[1727900463555,0.2056566,60440.0,60439.0,1e-06]
[1727900464045,0.1916566,60440.0,60439.0,1e-06]
[1727900464295,0.1776566,60440.0,60439.0,1e-06]
[1727900464538,0.0122036,60440.0,60439.0,0.174801]
[1727900464773,0.330847,60451.0,60439.0,0.174801]
[1727900465028,0.165436,60446.0,60445.0,0.0964]
[1727900465754,0.165436,60446.0,60440.0,0.0784]
[1727900465991,0.16545,60441.0,60440.0,0.0784]
[1727900466749,0.16545,60441.0,60439.0,1e-06]
[1727900466750,0.165453,60440.0,60439.0,1e-06]
[1727900467483,0.1913937,60440.0,60439.0,1e-06]
[1727900468642,0.1963937,60440.0,60439.0,1e-06]
[1727900469133,0.1993937,60440.0,60439.0,1e-06]
[1727900469377,0.3904989,60440.0,60439.0,1e-06]
[1727900469854,0.3924989,60440.0,60439.0,1e-06]
[1727900470136,0.3934989,60440.0,60439.0,1e-06]
[1727900470377,0.7714989,60440.0,60439.0,1e-06]
[1727900470614,0.7704989,60440.0,60439.0,1e-06]
[1727900470852,0.7844989,60440.0,60439.0,1e-06]
[1727900471323,0.4124989,60440.0,60439.0,1e-06]
[1727900471563,0.2481311,60440.0,60439.0,1e-06]
[1727900471805,0.2541311,60440.0,60439.0,1e-06]
[1727900472274,0.28021852,60440.0,60439.0,1e-06]
[1727900472516,0.26621852,60440.0,60439.0,1e-06]
[1727900472766,0.23148112,60440.0,60439.0,1e-06]
[1727900473003,0.21748112,60440.0,60439.0,1e-06]
[1727900473235,0.23148112,60440.0,60439.0,1e-06]
[1727900473705,0.21748112,60440.0,60439.0,1e-06]
[1727900473954,0.19254042,60440.0,60439.0,1e-06]
[1727900474442,0.19654042,60440.0,60439.0,1e-06]
[1727900474690,0.24891101,60456.0,60439.0,1e-06]
[1727900474691,0.24891101,60455.0,60442.0,0.1752]
[1727900474926,0.24891101,60455.0,60439.0,0.2845993]
[1727900474927,0.24891101,60455.0,60454.0,0.340615]
[1727900475174,0.330797,60460.0,60454.0,0.1752]
[1727900475418,0.330786,60462.0,60458.0,0.2845983]
[1727900475658,0.165404,60458.0,60454.0,0.340614]
[1727900476128,0.001,60455.0,60454.0,0.1752]
[1727900476366,0.330798,60460.0,60454.0,0.1752]
[1727900476599,0.165409,60456.0,60454.0,0.1752]
[1727900477059,0.165412,60455.0,60454.0,0.1752]
[1727900477792,0.001,60460.0,60454.0,0.340614]
[1727900478024,0.165409,60457.0,60454.0,0.0954]
[1727900478273,0.24891101,60478.0,60459.0,0.1789]
[1727900478513,0.24891101,60478.0,60477.0,0.78259072]
[1727900478746,0.24891101,60478.0,60477.0,0.61723872]
[1727900479002,0.332315,60482.0,60477.0,0.1789]
[1727900479234,0.332313,60482.0,60477.0,0.1789]
[1727900479463,0.001636,60482.0,60477.0,0.1789]
[1727900479705,0.165341,60481.0,60477.0,0.1789]
[1727900479942,0.165346,60479.0,60478.0,0.01789]
[1727900480178,0.001636,60482.0,60478.0,0.01789]
[1727900480431,0.165346,60479.0,60478.0,0.01789]
[1727900481114,0.166346,60479.0,60478.0,0.01989]
[1727900482067,0.166346,60479.0,60478.0,0.002]
[1727900482304,0.166346,60479.0,60478.0,0.006]
[1727900482305,0.01053387,60479.0,60478.0,0.006]
[1727900482545,0.01153387,60479.0,60478.0,0.006]
[1727900482780,0.01153387,60479.0,60478.0,0.012]
[1727900482781,0.01155812,60479.0,60478.0,0.012]
[1727900483012,0.01055812,60479.0,60478.0,0.01909]
[1727900483479,0.01055812,60479.0,60478.0,0.02109]
[1727900483735,0.165346,60479.0,60478.0,0.002]
[1727900483971,0.165349,60478.0,60477.0,0.1789]
[1727900484514,0.165349,60478.0,60477.0,0.0798]
[1727900484750,0.165376,60468.0,60467.0,0.0994]
[1727900484982,0.01056378,60478.0,60471.0,0.24891101]
[1727900485224,0.165373,60469.0,60468.0,0.1125311]
[1727900487131,0.166373,60469.0,60468.0,0.1215311]
[1727900487364,0.001,60469.0,60468.0,0.1215311]
[1727900487598,0.165373,60470.0,60468.0,0.1225311]
[1727900487823,0.33073,60473.0,60469.0,0.01717423]
[1727900488056,0.165371,60470.0,60469.0,0.01717423]
[1727900488300,0.165371,60470.0,60468.0,0.0987]
[1727900488301,0.165373,60469.0,60468.0,0.0987]
[1727900488536,0.165371,60470.0,60468.0,0.0987]
[1727900488779,0.02592331,60473.0,60469.0,0.01981]
[1727900489022,0.165369,60471.0,60469.0,0.01981]
[1727900489292,0.02592331,60473.0,60472.0,0.165365]
[1727900489536,0.165347,60479.0,60475.0,0.165357]
[1727900489776,0.27483204,60480.0,60469.0,0.02981]
[1727900490011,0.02592103,60480.0,60477.0,0.165351]
[1727900490258,0.02592103,60480.0,60479.0,0.165346]
[1727900490496,0.001636,60482.0,60481.0,0.188341]
[1727900490737,0.001636,60482.0,60481.0,0.165341]
[1727900490966,0.001636,60482.0,60481.0,0.208151]
[1727900491206,0.001636,60494.0,60482.0,0.0781]
[1727900491452,0.24891101,60489.0,60483.0,0.023]
[1727900491686,0.01100933,60491.0,60489.0,0.165318]
[1727900491980,0.165309,60493.0,60489.0,0.165318]
[1727900492209,0.165309,60493.0,60490.0,0.03219533]
[1727900492443,0.166947,60492.0,60490.0,0.03219533]
[1727900492672,0.17660903,60491.0,60490.0,0.03219533]
[1727900492904,0.165316,60490.0,60483.0,0.353669]
[1727900493146,0.01129603,60491.0,60482.0,0.50634801]
[1727900493381,0.330644,60488.0,60483.0,0.165334]
[1727900493615,0.02591573,60489.0,60482.0,0.0781]
[1727900493836,0.330657,60486.0,60482.0,0.0781]
[1727900494070,0.165333,60484.0,60483.0,0.01]
[1727900494308,0.0112759,60485.0,60484.0,0.165332]
[1727900494563,0.001,60490.0,60485.0,0.165329]
[1727900494791,0.001,60490.0,60483.0,0.01]
[1727900494792,0.165332,60484.0,60483.0,0.01]
[1727900495254,0.165335,60483.0,60482.0,0.0781]
[1727900495479,0.165335,60484.0,60482.0,0.0861]
[1727900495963,0.165335,60483.0,60482.0,0.005]
[1727900497201,0.001,60484.0,60483.0,0.165335]
[1727900497474,0.001,60484.0,60482.0,0.008]
[1727900497475,0.166334,60484.0,60482.0,0.008]
[1727900497726,0.001,60484.0,60483.0,0.009]
[1727900498012,0.001,60484.0,60483.0,0.0905]
[1727900498293,0.165335,60483.0,60482.0,0.009]
[1727900498841,0.330667,60484.0,60475.0,0.0828]
[1727900498842,0.165354,60476.0,60475.0,0.0828]
[1727900498853,0.330678,60482.0,60475.0,0.248157]
[1727900499099,0.02592003,60489.0,60477.0,0.16535]
[1727900499100,0.165344,60480.0,60477.0,0.16535]
[1727900499365,0.004,60484.0,60483.0,0.01]
[1727900499936,0.004,60484.0,60483.0,0.001]
[1727900499937,0.003,60484.0,60483.0,0.001]
[1727900500702,0.165349,60478.0,60477.0,0.03404533]
[1727900500943,0.330694,60479.0,60475.0,0.0928]
[1727900501219,0.165354,60476.0,60475.0,0.0928]
[1727900501444,0.165354,60476.0,60454.0,0.081634]
[1727900501445,0.24891101,60476.0,60454.0,0.081634]
[1727900501710,0.165412,60455.0,60454.0,0.081634]
[1727900502284,0.165412,60455.0,60454.0,0.001634]
[1727900502763,0.19134301,60455.0,60454.0,0.001634]
[1727900503919,0.165412,60455.0,60454.0,0.001634]
[1727900504156,0.167412,60455.0,60454.0,0.002634]
[1727900504401,0.76573631,60455.0,60454.0,1e-06]
[1727900504641,0.76573631,60455.0,60432.0,0.24891101]
[1727900504642,0.165453,60440.0,60432.0,0.24891101]
[1727900504889,0.60612528,60440.0,60432.0,0.24891101]
[1727900505245,0.65255563,60440.0,60439.0,1e-06]
[1727900505469,0.60612528,60440.0,60439.0,1e-06]
[1727900505923,0.62144942,60440.0,60439.0,1e-06]
[1727900506163,0.63144942,60440.0,60439.0,0.002001]
[1727900506400,0.64344942,60440.0,60439.0,0.002001]
[1727900506811,0.65939269,60440.0,60439.0,0.001001]
[1727900507027,0.64344942,60440.0,60439.0,0.002001]
[1727900507253,0.63344942,60440.0,60439.0,0.001001]
[1727900507477,0.19277714,60440.0,60439.0,0.001001]
[1727900507718,0.20383658,60440.0,60439.0,0.001001]
[1727900507937,0.21383658,60440.0,60439.0,0.002001]
[1727900508163,0.20383658,60440.0,60439.0,0.001001]
[1727900508405,0.45274759,60440.0,60439.0,0.001001]
[1727900508673,0.45274759,60440.0,60439.0,0.002001]
[1727900508674,0.21383658,60440.0,60439.0,0.002001]
[1727900509804,0.23977938,60440.0,60439.0,0.002001]
[1727900512832,0.22245524,60440.0,60439.0,0.002001]
[1727900513510,0.21245524,60440.0,60439.0,0.001001]
[1727900513957,0.18651244,60440.0,60439.0,0.004001]
[1727900514398,0.17651244,60440.0,60439.0,0.006001]
[1727900514617,0.17651244,60440.0,60439.0,0.003001]
[1727900515079,0.17651244,60440.0,60439.0,1e-06]
[1727900515972,0.17751244,60440.0,60439.0,0.011001]
[1727900516431,0.17751244,60440.0,60439.0,0.0196811]
[1727900517352,0.17751244,60440.0,60439.0,0.0086811]
[1727900517353,0.17651244,60440.0,60439.0,0.0086811]
[1727900517580,0.17751244,60440.0,60439.0,0.007001]
[1727900518245,0.17751244,60440.0,60439.0,0.011001]
[1727900518459,0.20345443,60440.0,60439.0,0.004001]
[1727900518687,0.20745443,60440.0,60439.0,0.004001]
[1727900518920,0.20645443,60440.0,60439.0,1e-06]
[1727900519354,0.21345443,60440.0,60439.0,1e-06]
[1727900520567,0.21045443,60440.0,60439.0,1e-06]
[1727900520939,0.21345443,60440.0,60439.0,1e-06]
[1727900521170,0.20545443,60440.0,60439.0,1e-06]
[1727900521388,0.20645443,60440.0,60439.0,1e-06]
[1727900521643,0.20945443,60440.0,60439.0,1e-06]
[1727900521852,0.20545443,60440.0,60439.0,1e-06]
[1727900522064,0.20645443,60440.0,60439.0,1e-06]
[1727900522490,0.20945443,60440.0,60439.0,1e-06]
[1727900522713,0.21345443,60440.0,60439.0,1e-06]
[1727900522948,0.20545443,60440.0,60439.0,1e-06]
[1727900523176,0.04000143,60440.0,60439.0,1e-06]
[1727900523414,0.01405944,60440.0,60439.0,0.171801]
[1727900523630,0.01105944,60440.0,60439.0,0.62162364]
[1727900523844,0.330812,60458.0,60441.0,0.002]
[1727900524070,0.26623057,60463.0,60442.0,0.00330856]
[1727900524071,0.24891101,60444.0,60442.0,0.00330856]
[1727900524320,0.330824,60455.0,60446.0,0.330869]
[1727900524544,0.165431,60448.0,60447.0,0.0330869]
[1727900524766,0.165453,60440.0,60439.0,0.172801]
[1727900524984,0.001,60440.0,60439.0,0.176801]
[1727900525465,0.165453,60440.0,60439.0,0.172801]
[1727900525674,0.165453,60440.0,60439.0,0.1900811]
[1727900526101,0.165453,60440.0,60439.0,0.1890811]
[1727900526316,0.166453,60440.0,60439.0,0.2030811]
[1727900526528,0.165453,60440.0,60439.0,0.1890811]
[1727900527227,0.165453,60440.0,60439.0,1e-06]
[1727900527445,0.166453,60440.0,60439.0,0.004001]
[1727900527904,0.19239263,60440.0,60439.0,0.009001]
[1727900528196,0.19239263,60440.0,60439.0,0.004001]
[1727900528197,0.19339263,60440.0,60439.0,0.004001]
[1727900528693,0.19239263,60440.0,60439.0,1e-06]
[1727900528926,0.19139263,60440.0,60439.0,1e-06]
[1727900529142,0.02593963,60440.0,60439.0,0.003001]
[1727900529386,0.02593963,60440.0,60439.0,1e-06]
[1727900529828,0.330873,60447.0,60439.0,0.165457]
[1727900530053,0.165448,60442.0,60439.0,0.00330977]
[1727900530279,0.001,60440.0,60439.0,0.356057]
[1727900530501,0.002,60440.0,60439.0,0.194601]
[1727900530764,0.002,60440.0,60439.0,0.38636567]
[1727900530993,0.02593531,60444.0,60443.0,0.165445]
[1727900531219,0.167051,60454.0,60446.0,0.0828]
[1727900531451,0.001634,60454.0,60453.0,0.55758364]
[1727900531680,0.24891101,60463.0,60462.0,0.248193]
[1727900531903,0.24891101,60463.0,60462.0,0.271193]
[1727900532119,0.24891101,60463.0,60462.0,0.1058]
[1727900532340,0.165386,60465.0,60462.0,0.1058]
[1727900532341,0.16538,60467.0,60462.0,0.1058]
[1727900532569,0.35665705,60472.0,60463.0,0.28436664]
[1727900532570,0.02592505,60472.0,60463.0,0.28436664]
[1727900532789,0.02592505,60472.0,60465.0,0.023]
[1727900532790,0.24891101,60468.0,60465.0,0.023]
[1727900533021,0.165374,60469.0,60465.0,0.188384]
[1727900533263,0.165372,60470.0,60465.0,0.188384]
[1727900533499,0.165384,60465.0,60464.0,0.0903]
[1727900533727,0.165384,60465.0,60464.0,0.10761]
[1727900534889,0.165384,60465.0,60464.0,0.01731]
[1727900535133,0.24891101,60466.0,60454.0,0.0795]
[1727900535360,0.330759,60467.0,60454.0,0.0795]
[1727900535361,0.165412,60455.0,60454.0,0.0795]
[1727900535586,0.165423,60451.0,60450.0,0.24891101]
[1727900535803,0.330824,60455.0,60445.0,0.0795]
[1727900536025,0.165435,60447.0,60445.0,0.0795]
[1727900536253,0.165436,60446.0,60445.0,0.0795]
[1727900536943,0.165436,60446.0,60445.0,0.0905]
[1727900537654,0.17460198,60446.0,60445.0,0.0905]
[1727900537886,0.25807699,60446.0,60441.0,0.0903]
[1727900538112,0.33088,60445.0,60441.0,0.0903]
[1727900538333,0.165447,60442.0,60441.0,0.0903]
[1727900538782,0.17460811,60442.0,60441.0,0.0903]
[1727900539005,0.00916111,60442.0,60441.0,0.1075901]
[1727900539231,0.57972401,60458.0,60442.0,0.0831]
[1727900539453,0.57972401,60458.0,60455.0,0.0831]
[1727900539454,0.24891101,60458.0,60455.0,0.0831]
[1727900539891,0.165407,60457.0,60455.0,0.0831]
[1727900540112,0.330786,60462.0,60455.0,0.0831]
[1727900540113,0.165409,60456.0,60455.0,0.0831]
[1727900541159,0.19133987,60456.0,60455.0,0.0831]
[1727900541434,0.02593087,60456.0,60455.0,0.267822]
[1727900541692,0.19133987,60456.0,60455.0,0.10241]
[1727900542445,0.19133987,60456.0,60455.0,0.018]
[1727900542689,0.19133987,60456.0,60455.0,0.007]
[1727900542929,0.19133987,60456.0,60455.0,0.009]
[1727900543186,0.19133987,60456.0,60455.0,0.023]
[1727900543455,0.02593087,60456.0,60455.0,0.165412]
[1727900543701,0.02593087,60456.0,60455.0,0.1229]
[1727900543702,0.001,60456.0,60455.0,0.1229]
[1727900543949,0.001,60456.0,60455.0,0.275312]
[1727900544192,0.165401,60459.0,60455.0,0.269312]
[1727900544480,0.001,60456.0,60455.0,0.278312]
[1727900544739,0.001,60456.0,60455.0,0.1129]
[1727900544980,0.166409,60456.0,60455.0,0.1129]
[1727900545230,0.001,60456.0,60455.0,0.1129]
[1727900545500,0.001,60456.0,60455.0,0.384412]
[1727900545748,0.330756,60468.0,60463.0,0.165389]
[1727900546035,0.24891101,60476.0,60463.0,0.165389]
[1727900546036,0.24891101,60476.0,60464.0,0.165387]
[1727900546254,0.330727,60473.0,60464.0,0.2438969]
[1727900546516,0.165369,60471.0,60464.0,0.24529432]
[1727900546764,0.166201,60465.0,60464.0,0.0766]
[1727900547483,0.167201,60465.0,60464.0,0.1036]
[1727900547754,0.001817,60465.0,60464.0,0.1036]
[1727900547996,0.001817,60465.0,60464.0,0.291987]
[1727900553651,0.001817,60465.0,60464.0,0.1036]
[1727900553868,0.001817,60465.0,60464.0,0.268987]
[1727900554330,0.167201,60465.0,60464.0,0.1036]
[1727900554584,0.167201,60465.0,60464.0,0.027]
[1727900555739,0.000817,60465.0,60454.0,0.001634]
[1727900555999,0.165412,60455.0,60454.0,0.001634]
[1727900557205,0.165412,60455.0,60454.0,0.014634]
[1727900557435,0.165412,60455.0,60454.0,0.001634]
[1727900558254,0.165412,60455.0,60454.0,0.004634]
[1727900559069,0.166412,60455.0,60454.0,0.012634]
[1727900559291,0.166412,60455.0,60454.0,0.024634]
[1727900559781,0.0259323,60457.0,60454.0,0.28600064]
[1727900559985,0.1913403,60457.0,60454.0,0.46341364]
[1727900560210,0.1913403,60457.0,60454.0,0.45141364]
[1727900560434,0.1913403,60457.0,60454.0,0.46341364]
[1727900560658,0.1913403,60457.0,60454.0,0.45141364]
[1727900561137,0.001,60455.0,60454.0,0.46241364]
[1727900561379,0.001,60455.0,60454.0,0.012634]
[1727900561605,0.165409,60456.0,60454.0,0.001634]
[1727900561832,0.165409,60456.0,60455.0,0.0263054]
[1727900562520,0.0259323,60457.0,60455.0,0.0263054]
[1727900562717,0.1913413,60457.0,60454.0,0.026634]
[1727900563004,0.1913413,60457.0,60454.0,0.013634]
[1727900563235,0.165409,60456.0,60455.0,0.012]
[1727900563719,0.165409,60456.0,60455.0,0.023]
[1727900564456,0.166409,60456.0,60455.0,0.011]
[1727900564910,0.001,60456.0,60455.0,0.011]
[1727900565140,0.001,60456.0,60454.0,0.001634]
[1727900565363,0.165412,60455.0,60454.0,0.001634]
[1727900565799,0.165412,60455.0,60454.0,0.012634]
[1727900566042,0.165412,60455.0,60454.0,0.001634]
[1727900566276,0.165412,60455.0,60454.0,0.013634]
[1727900566944,0.165412,60455.0,60454.0,0.001634]
[1727900567170,0.165412,60455.0,60454.0,0.014634]
[1727900567445,0.165412,60455.0,60454.0,0.025634]
[1727900567907,0.165412,60455.0,60454.0,0.014634]
[1727900568132,0.166412,60455.0,60454.0,0.026634]
[1727900568591,0.165412,60455.0,60454.0,0.014634]
[1727900568817,0.165412,60455.0,60454.0,0.017634]
[1727900569308,0.165412,60455.0,60454.0,0.004634]
[1727900569997,0.165412,60455.0,60454.0,0.007634]
[1727900570240,0.165412,60455.0,60454.0,0.004634]
[1727900570467,0.172412,60455.0,60454.0,0.005634]
[1727900570713,0.165412,60455.0,60454.0,0.001634]
[1727900571167,0.19134556,60455.0,60454.0,0.005634]
[1727900571663,0.19134556,60455.0,60454.0,0.001634]
[1727900571904,0.19134556,60455.0,60454.0,0.003634]
[1727900572160,0.02593356,60455.0,60454.0,0.169049]
[1727900572924,0.02593356,60455.0,60454.0,0.003634]
[1727900573153,0.165404,60458.0,60455.0,0.165412]
[1727900573374,0.165402,60459.0,60455.0,0.165411]
[1727900573610,0.24891101,60461.0,60454.0,0.007634]
[1727900573837,0.24972801,60465.0,60464.0,0.165387]
[1727900574296,0.24972801,60465.0,60463.0,0.37546664]
[1727900574520,0.000817,60465.0,60463.0,0.0911]
[1727900574742,0.000817,60465.0,60464.0,0.165387]
[1727900575194,0.001817,60465.0,60464.0,0.178387]
[1727900575676,0.000817,60465.0,60464.0,0.165387]
[1727900575899,0.001817,60465.0,60464.0,0.165387]
[1727900576350,0.001817,60465.0,60463.0,0.1041]
[1727900576581,0.001817,60465.0,60464.0,0.014]
[1727900576781,0.001817,60465.0,60464.0,0.179387]
[1727900577042,0.001817,60465.0,60464.0,0.014]
[1727900577281,0.001817,60465.0,60464.0,0.165387]
[1727900577513,0.000817,60465.0,60464.0,0.165387]
[1727900577996,0.000817,60465.0,60463.0,0.270489]
[1727900578228,0.001817,60465.0,60464.0,0.013]
[1727900578452,0.167201,60465.0,60464.0,0.013]
[1727900578900,0.167201,60465.0,60455.0,0.41432101]
[1727900578901,0.1654,60460.0,60455.0,0.41432101]
[1727900579147,0.165402,60459.0,60455.0,0.41432101]
[1727900579395,0.001817,60465.0,60458.0,0.28436664]
[1727900579613,0.001817,60465.0,60464.0,0.165387]
[1727900579844,0.001817,60465.0,60462.0,0.165393]
[1727900580315,0.001817,60465.0,60458.0,0.28436664]
[1727900580578,0.001817,60465.0,60455.0,0.014]
[1727900580579,0.165398,60460.0,60456.0,0.165408]
[1727900580799,0.165398,60460.0,60455.0,0.014]
[1727900580800,0.330787,60462.0,60455.0,0.26291101]
[1727900581018,0.330787,60462.0,60455.0,0.42832101]
[1727900581019,0.165402,60459.0,60455.0,0.42832101]
[1727900581244,0.02592826,60461.0,60459.0,0.165401]
[1727900581467,0.165409,60456.0,60455.0,0.014]
[1727900582370,0.165409,60456.0,60454.0,0.001634]
[1727900582599,0.165412,60455.0,60454.0,0.001634]
[1727900583548,0.57972501,60457.0,60454.0,0.001634]
[1727900583781,0.165412,60455.0,60454.0,0.013634]
[1727900584011,0.165412,60455.0,60454.0,0.001634]
[1727900584943,0.166412,60455.0,60454.0,0.014634]
[1727900585172,0.167412,60455.0,60454.0,0.026634]
[1727900585393,0.002,60455.0,60454.0,0.026634]
[1727900585620,0.167412,60455.0,60454.0,0.026634]
[1727900585845,0.166412,60455.0,60454.0,0.014634]
[1727900586064,0.165412,60455.0,60454.0,0.001634]
[1727900586506,0.166412,60455.0,60454.0,0.014634]
[1727900587495,0.167412,60455.0,60454.0,0.014634]
[1727900588009,0.166412,60455.0,60454.0,0.014634]
[1727900588339,0.166412,60455.0,60454.0,0.015634]
[1727900588602,0.166412,60455.0,60454.0,0.014634]
[1727900589072,0.166412,60455.0,60454.0,0.001634]
[1727900589540,0.167412,60455.0,60454.0,0.001634]
[1727900589775,0.166412,60455.0,60454.0,0.001634]
[1727900590727,0.168412,60455.0,60454.0,0.001634]
[1727900590960,0.21726197,60455.0,60454.0,0.001634]
[1727900591187,0.21526197,60455.0,60454.0,0.001634]
[1727900591419,0.35510164,60443.0,60442.0,0.001634]
[1727900591647,0.35510164,60443.0,60440.0,0.24891101]
[1727900591648,0.16745,60441.0,60440.0,0.24891101]
[1727900591912,0.167453,60440.0,60433.0,0.24891101]
[1727900592145,0.167453,60440.0,60417.0,0.000818]
[1727900592146,0.167491,60426.0,60417.0,0.000818]
[1727900592395,0.40599761,60426.0,60417.0,0.000818]
[1727900592628,0.40599761,60426.0,60425.0,0.000818]
[1727900592629,0.35714764,60426.0,60425.0,0.000818]
[1727900592863,0.40594737,60426.0,60425.0,0.000818]
[1727900593338,0.165491,60426.0,60425.0,0.000818]
[1727900593830,0.173491,60426.0,60425.0,0.001818]
[1727900594563,0.178491,60426.0,60425.0,0.001818]
[1727900595013,0.173491,60426.0,60425.0,0.001818]
[1727900595476,0.165491,60426.0,60425.0,0.000818]
[1727900596009,0.2578651,60426.0,60425.0,0.000818]
[1727900596239,0.2638651,60426.0,60425.0,0.000818]
[1727900596466,0.28781383,60426.0,60425.0,0.000818]
[1727900596695,0.2658651,60426.0,60425.0,0.000818]
[1727900596921,0.165513,60418.0,60417.0,0.000818]
[1727900597150,0.4522533,60418.0,60417.0,0.000818]
[1727900598336,0.165513,60418.0,60417.0,0.000818]
[1727900598573,0.168513,60418.0,60417.0,0.000818]
[1727900599498,0.19746325,60418.0,60417.0,0.000818]
[1727900599723,0.19446325,60418.0,60417.0,0.000818]
[1727900599962,0.19546325,60418.0,60417.0,0.000818]
[1727900600193,0.19246325,60418.0,60417.0,0.000818]
[1727900600423,0.19546325,60418.0,60417.0,0.000818]
[1727900600652,0.19446325,60418.0,60417.0,0.000818]
[1727900600930,0.19146325,60418.0,60417.0,0.000818]
[1727900601151,0.02895025,60418.0,60417.0,0.1906816]
[1727900601606,0.02695025,60418.0,60417.0,0.0251656]
[1727900601839,0.02695025,60418.0,60417.0,0.0271656]
[1727900602084,0.02695025,60418.0,60417.0,0.1926816]
[1727900602317,0.02595025,60418.0,60417.0,0.1926816]
[1727900602546,0.02595025,60418.0,60417.0,0.0271656]
[1727900602781,0.02695025,60418.0,60417.0,0.0271656]
[1727900603015,0.02695025,60418.0,60417.0,0.1926816]
[1727900603239,0.02795025,60418.0,60417.0,0.1263656]
[1727900603557,0.02695025,60418.0,60417.0,0.2898816]
[1727900603652,0.001,60418.0,60417.0,0.2898816]
[1727900603879,0.001,60418.0,60417.0,0.2948816]
[1727900604111,0.001,60418.0,60417.0,0.3068816]
[1727900604335,0.002,60418.0,60417.0,0.3208816]
[1727900604559,0.002,60418.0,60417.0,0.3178816]
[1727900605008,0.003,60418.0,60417.0,0.3258816]
[1727900605238,0.003,60418.0,60417.0,0.022818]
[1727900605932,0.16640361,60418.0,60417.0,0.008818]
[1727900606226,0.166513,60418.0,60417.0,0.014818]
[1727900606450,0.166513,60418.0,60417.0,0.024013]
[1727900606451,0.001,60418.0,60417.0,0.024013]
[1727900606676,0.168513,60418.0,60417.0,0.043013]
[1727900606895,0.19345962,60418.0,60417.0,0.029013]
[1727900607142,0.19245962,60418.0,60417.0,0.024013]
[1727900607373,0.19345962,60418.0,60417.0,0.029013]
[1727900607604,0.19245962,60418.0,60417.0,0.015013]
[1727900607824,0.19245962,60418.0,60417.0,0.010013]
[1727900607825,0.19145962,60418.0,60417.0,0.010013]
[1727900608044,0.19245962,60418.0,60417.0,0.015013]
[1727900608952,0.02694662,60418.0,60417.0,0.180529]
[1727900609413,0.02694662,60418.0,60417.0,0.010013]
[1727900609414,0.02594662,60418.0,60417.0,0.010013]
[1727900609641,0.02694662,60418.0,60417.0,0.017013]
[1727900609864,0.02794662,60418.0,60417.0,0.031013]
[1727900610133,0.02694662,60418.0,60417.0,0.182529]
[1727900610578,0.02794662,60418.0,60417.0,0.182529]
[1727900610805,0.02794662,60418.0,60417.0,0.196529]
[1727900611033,0.02794662,60418.0,60417.0,0.014818]
[1727900611034,0.19345962,60418.0,60417.0,0.014818]
[1727900611289,0.19445962,60418.0,60417.0,0.021818]
[1727900612499,0.19345962,60418.0,60417.0,0.014818]
[1727900612958,0.19445962,60418.0,60417.0,0.030163]
[1727900613194,0.19345962,60418.0,60417.0,0.030163]
[1727900613446,0.19345962,60418.0,60417.0,0.010163]
[1727900613447,0.02594662,60418.0,60417.0,0.010163]
[1727900613696,0.014,60418.0,60417.0,0.011163]
[1727900614008,0.179513,60418.0,60417.0,0.011163]
[1727900614225,0.178513,60418.0,60417.0,0.001818]
[1727900614443,0.179513,60418.0,60417.0,0.009818]
[1727900614653,0.166513,60418.0,60417.0,0.008818]
[1727900614873,0.167513,60418.0,60417.0,0.024563]
[1727900615108,0.167513,60418.0,60417.0,0.008818]
[1727900615554,0.166513,60418.0,60417.0,0.000818]
[1727900615996,0.167513,60418.0,60417.0,0.006818]
[1727900616446,0.167513,60418.0,60417.0,0.009818]
[1727900616666,0.168513,60418.0,60417.0,0.015818]
[1727900616874,0.166513,60418.0,60417.0,0.006818]
[1727900617094,0.167513,60418.0,60417.0,0.016818]
[1727900617536,0.167513,60418.0,60417.0,0.026363]